bitfinex/quotes_BTCUSD_20250522
["timestamp","ask_amount","ask_price","bid_price","bid_amount"]
[1747884954396,0.00893321,110910.0,110900.0,0.8030134]
[1747884954826,0.00893321,110910.0,110900.0,0.89704697]
[1747884955279,0.00049586,110910.0,110900.0,0.89704697]
[1747884955831,0.00049586,110910.0,110900.0,0.91138882]
[1747884956059,0.00149586,110910.0,110900.0,0.91138882]
[1747884956504,0.00249586,110910.0,110900.0,0.69608536]
[1747884956702,0.00049586,110910.0,110900.0,0.91138882]
[1747884958408,0.00049586,110910.0,110900.0,0.69608536]
[1747884958605,0.00049586,110910.0,110900.0,0.68048536]
[1747884958893,0.04118366,110920.0,110910.0,0.54737436]
[1747884959105,0.03231702,110920.0,110910.0,0.54737436]
[1747884959312,0.02330192,110920.0,110910.0,0.54737436]
[1747884959589,0.03231702,110920.0,110910.0,0.54737436]
[1747884959793,0.03231693,110920.0,110910.0,0.54737436]
[1747884960236,0.04133203,110920.0,110910.0,0.54737436]
[1747884960574,0.03231693,110920.0,110910.0,0.54737436]
[1747884960773,0.02330192,110920.0,110910.0,0.54737436]
[1747884960926,0.0001487,110920.0,110910.0,0.77907782]
[1747884961307,0.00916347,110920.0,110910.0,0.77907782]
[1747884961751,0.0001487,110920.0,110910.0,0.77907782]
[1747884962584,0.0001487,110920.0,110910.0,0.56377436]
[1747884962821,0.00916347,110920.0,110910.0,0.77907782]
[1747884963597,0.0181784,110920.0,110910.0,0.77907782]
[1747884964210,0.0001487,110920.0,110910.0,0.56377436]
[1747884964414,0.00916347,110920.0,110910.0,0.77907782]
[1747884964785,0.01817832,110920.0,110910.0,0.77907782]
[1747884965388,0.00393347,110920.0,110910.0,0.77907782]
[1747884966000,0.01294832,110920.0,110910.0,0.77907782]
[1747884966616,0.01294832,110920.0,110910.0,0.56377436]
[1747884967058,0.01294832,110920.0,110910.0,0.77907782]
[1747884967221,0.02196333,110920.0,110910.0,0.77907782]
[1747884967485,0.01294832,110920.0,110910.0,0.77907782]
[1747884967684,0.02196333,110920.0,110910.0,0.77907782]
[1747884969041,0.02196333,110920.0,110910.0,0.76267782]
[1747884969274,0.03097859,110920.0,110910.0,0.76267782]
[1747884969637,0.02196333,110920.0,110910.0,0.76267782]
[1747884969831,0.01294832,110920.0,110910.0,0.54737436]
[1747884970111,0.01842253,110930.0,110910.0,0.7596456]
[1747884970282,0.00901493,110920.0,110910.0,0.76866159]
[1747884970659,0.04546603,110930.0,110920.0,0.2073559]
[1747884970861,0.23233737,110930.0,110920.0,0.19834097]
[1747884971605,0.01803035,110920.0,110910.0,0.75964584]
[1747884971757,0.03606054,110920.0,110910.0,0.7626779]
[1747884971945,0.03606054,110920.0,110910.0,0.77169365]
[1747884972153,0.0270452,110920.0,110910.0,0.77169365]
[1747884972812,0.03606054,110920.0,110910.0,0.77169365]
[1747884973015,0.03606054,110920.0,110910.0,0.74464608]
[1747884973016,0.20735615,110920.0,110910.0,0.74464608]
[1747884973193,0.20735615,110920.0,110910.0,0.76267814]
[1747884973604,0.20735615,110920.0,110910.0,0.54737468]
[1747884973891,0.20735615,110920.0,110910.0,0.52934262]
[1747884974097,0.20735615,110920.0,110910.0,0.53835877]
[1747884974302,0.20735615,110920.0,110910.0,0.54737476]
[1747884975864,0.20735615,110920.0,110910.0,0.55639067]
[1747884976852,0.20735615,110920.0,110910.0,0.54737476]
[1747884978410,0.20735615,110920.0,110910.0,0.53835877]
[1747884978575,0.20735615,110920.0,110910.0,0.54737476]
[1747884978775,0.18932555,110920.0,110910.0,0.34]
[1747884978984,0.20462555,110920.0,110910.0,0.52934254]
[1747884979163,0.20462555,110920.0,110910.0,0.53835861]
[1747884980012,0.19834073,110920.0,110910.0,0.5473746]
[1747884980188,0.20735623,110920.0,110910.0,0.55639051]
[1747884980609,0.20735623,110920.0,110910.0,0.5473746]
[1747884980837,0.20735623,110920.0,110910.0,0.53835861]
[1747884981330,0.20735623,110920.0,110910.0,0.5473746]
[1747884981764,0.00901493,110920.0,110910.0,0.57299035]
[1747884982007,0.02704545,110920.0,110910.0,0.79730964]
[1747884982233,0.03308499,110960.0,110950.0,0.0328]
[1747884982448,0.01349888,110970.0,110960.0,0.39983578]
[1747884982662,0.01349888,110970.0,110960.0,0.9148018]
[1747884982874,0.00284583,110970.0,110960.0,1.16085964]
[1747884983084,0.00284583,110970.0,110960.0,1.08032522]
[1747884983287,0.00284583,110970.0,110960.0,1.06578437]
[1747884983498,0.00284583,110970.0,110960.0,1.17387256]
[1747884983699,0.00284583,110970.0,110960.0,1.19189617]
[1747884983921,0.00284583,110970.0,110960.0,1.20560247]
[1747884984133,0.00284583,110970.0,110960.0,1.23260685]
[1747884984344,0.08184619,110980.0,110970.0,1.05371617]
[1747884984548,0.08184619,110980.0,110970.0,0.69801526]
[1747884984549,0.2710689,110980.0,110970.0,0.69801526]
[1747884984751,0.2800792,110980.0,110970.0,0.47913974]
[1747884984947,0.28007896,110980.0,110970.0,0.51121797]
[1747884985072,0.26205884,110980.0,110970.0,0.6398739]
[1747884985295,0.09085609,110980.0,110970.0,0.67494839]
[1747884985518,0.2890891,110980.0,110970.0,0.66593703]
[1747884985724,0.10086615,110980.0,110970.0,0.68395967]
[1747884986072,0.30009932,110980.0,110970.0,0.64129613]
[1747884986288,0.29108894,110980.0,110970.0,0.65931795]
[1747884986513,0.29108894,110980.0,110970.0,0.650307]
[1747884986688,0.11988651,110980.0,110970.0,0.650307]
[1747884986902,0.30009956,110980.0,110970.0,0.43403357]
[1747884987116,0.29109015,110980.0,110970.0,0.44304485]
[1747884987317,0.28207952,110980.0,110970.0,0.63228494]
[1747884987516,0.29100462,110980.0,110970.0,0.64129605]
[1747884987718,0.28199415,110980.0,110970.0,0.65030708]
[1747884987924,0.30001516,110980.0,110970.0,0.63228494]
[1747884988141,0.30001508,110980.0,110970.0,0.63228494]
[1747884988293,0.30001508,110980.0,110970.0,0.34]
[1747884988497,0.29100502,110980.0,110970.0,0.34901144]
[1747884988913,0.29100502,110980.0,110970.0,0.34]
[1747884989135,0.29100502,110980.0,110970.0,0.34901144]
[1747884989434,0.29100502,110980.0,110970.0,0.3580228]
[1747884989688,0.29100502,110980.0,110970.0,0.57332626]
[1747884989837,0.29100502,110980.0,110970.0,0.55530346]
[1747884990034,0.28199415,110980.0,110970.0,0.52924025]
[1747884990307,0.29100462,110980.0,110970.0,0.52924025]
[1747884990528,0.20924348,110980.0,110970.0,0.34901144]
[1747884990718,0.20023301,110980.0,110970.0,0.34901136]
[1747884990953,0.21825394,110980.0,110970.0,0.3580228]
[1747884991167,0.21825394,110980.0,110970.0,0.34901144]
[1747884991412,0.21825394,110980.0,110970.0,0.3580228]
[1747884991611,0.94765394,110980.0,110970.0,0.34901144]
[1747884991766,0.94765394,110980.0,110970.0,0.34]
[1747884991967,0.95666457,110980.0,110970.0,0.34]
[1747884992173,0.94765451,110980.0,110970.0,0.34]
[1747884992366,0.93864388,110980.0,110970.0,0.34]
[1747884992941,0.93864388,110980.0,110970.0,0.55530346]
[1747884993314,0.93864388,110980.0,110970.0,0.34]
[1747884994173,0.20924388,110980.0,110970.0,0.34]
[1747884994395,0.93864388,110980.0,110970.0,0.34]
[1747884994733,0.93864396,110980.0,110970.0,0.34]
[1747884995500,0.92963333,110980.0,110970.0,0.34]
[1747884995631,0.93864396,110980.0,110970.0,0.34]
[1747884995809,0.20023333,110980.0,110970.0,0.34]
[1747884996016,0.66828339,110980.0,110970.0,0.34]
[1747884996215,0.94757402,110980.0,110970.0,0.34]
[1747884996888,0.94757386,110980.0,110970.0,0.55530346]
[1747884997093,0.22726449,110980.0,110970.0,0.55530346]
[1747884997302,0.20924323,110980.0,110970.0,0.55530346]
[1747884997476,0.92054255,110980.0,110970.0,0.86398856]
[1747884997674,0.92955269,110980.0,110970.0,0.86398856]
[1747884997882,0.93856299,110980.0,110970.0,0.86398872]
[1747884998094,0.20023269,110980.0,110970.0,1.08830346]
[1747884998278,0.27228,110980.0,110970.0,1.09731457]
[1747884998479,0.002,110980.0,110970.0,1.09731466]
[1747884998684,0.20924275,110980.0,110970.0,0.89005193]
[1747884998985,0.19122271,110980.0,110970.0,0.67474847]
[1747884999396,0.20924323,110980.0,110970.0,0.68375983]
[1747884999932,0.20924396,110980.0,110970.0,0.64933703]
[1747885000151,0.47952396,110980.0,110970.0,0.34]
[1747885001325,0.47051366,110980.0,110970.0,0.34]
[1747885004341,0.47051366,110980.0,110970.0,0.7482]
[1747885004690,0.46150328,110980.0,110970.0,0.34]
[1747885004913,0.23006907,110960.0,110950.0,0.0106548]
[1747885005132,1.04442264,110960.0,110950.0,0.01080347]
[1747885006014,1.05281099,110960.0,110950.0,0.01080347]
[1747885006254,0.78253099,110960.0,110950.0,0.01180347]
[1747885006449,1.05281099,110960.0,110950.0,0.01180347]
[1747885006598,1.05281099,110960.0,110950.0,0.01280347]
[1747885006803,1.05281099,110960.0,110950.0,0.01180347]
[1747885007002,1.05381099,110960.0,110950.0,0.00014867]
[1747885007554,1.03801099,110960.0,110950.0,0.00014867]
[1747885007763,1.05411099,110960.0,110950.0,0.00014867]
[1747885008346,1.05315099,110960.0,110950.0,0.00014867]
[1747885008556,1.05515099,110960.0,110950.0,0.00014867]
[1747885008703,1.05815099,110960.0,110950.0,0.00014867]
[1747885008898,1.04005099,110960.0,110950.0,0.00014867]
[1747885009183,0.94901742,110960.0,110950.0,0.00014867]
[1747885010540,0.22865742,110960.0,110950.0,0.00014867]
[1747885010716,0.94905742,110960.0,110950.0,0.00014867]
[1747885011630,0.93305742,110960.0,110950.0,0.00014867]
[1747885011854,0.21265742,110960.0,110950.0,0.00014867]
[1747885012055,0.93305742,110960.0,110950.0,0.00014867]
[1747885012258,1.04359099,110960.0,110950.0,0.00014867]
[1747885012491,1.05909099,110960.0,110950.0,0.00014867]
[1747885013471,1.07363184,110960.0,110950.0,0.00014867]
[1747885014199,1.05909099,110960.0,110950.0,0.00014867]
[1747885014398,1.04359099,110960.0,110950.0,0.00014867]
[1747885014607,1.04363099,110960.0,110950.0,0.00014867]
[1747885016283,0.32319099,110960.0,110950.0,0.00014867]
[1747885016481,0.93313742,110960.0,110950.0,0.00014867]
[1747885016867,0.92474907,110960.0,110950.0,0.00014867]
[1747885019071,0.65508052,110960.0,110950.0,0.00014867]
[1747885019226,0.21482268,110930.0,110920.0,0.0106548]
[1747885019440,0.19837633,110900.0,110890.0,0.0106548]
[1747885019645,0.46873633,110900.0,110890.0,0.0106548]
[1747885019906,0.91889633,110900.0,110890.0,0.0106548]
[1747885020349,0.91889633,110900.0,110890.0,0.3506548]
[1747885020571,0.91889633,110900.0,110890.0,0.0106548]
[1747885020977,0.91989633,110900.0,110890.0,0.35115066]
[1747885021147,0.91989633,110900.0,110890.0,0.01115066]
[1747885021524,0.91989633,110900.0,110890.0,0.00049586]
[1747885021843,0.91989633,110900.0,110890.0,0.34049586]
[1747885022083,0.91989633,110900.0,110890.0,0.00049586]
[1747885022281,1.0304299,110900.0,110890.0,0.00049586]
[1747885022479,1.27667421,110900.0,110890.0,0.00049586]
[1747885022836,1.62667421,110900.0,110890.0,0.00049586]
[1747885023041,0.22167669,110890.0,110880.0,0.01]
[1747885023254,1.30271253,110890.0,110880.0,0.0101487]
[1747885023491,1.32649756,110890.0,110880.0,0.0101487]
[1747885023947,1.31649756,110890.0,110870.0,0.1]
[1747885024152,2.11781835,110880.0,110870.0,0.0834]
[1747885024353,2.11781835,110880.0,110850.0,0.01]
[1747885024354,0.54844791,110860.0,110850.0,0.01]
[1747885024623,1.33647986,110860.0,110850.0,0.01014882]
[1747885024812,0.86237483,110860.0,110850.0,0.01014882]
[1747885025065,1.59767568,110860.0,110850.0,0.01014882]
[1747885025292,1.65697104,110860.0,110850.0,0.01014882]
[1747885025532,0.30702233,110860.0,110850.0,0.01014882]
[1747885025905,1.02778233,110860.0,110850.0,0.01014882]
[1747885026115,0.30702233,110860.0,110850.0,0.01014882]
[1747885026314,1.01924148,110860.0,110850.0,0.01014882]
[1747885026566,0.29848148,110860.0,110850.0,0.01014882]
[1747885026767,1.01924148,110860.0,110850.0,0.01014882]
[1747885027130,1.03878233,110860.0,110850.0,0.01014882]
[1747885027322,1.24308579,110860.0,110850.0,0.01014882]
[1747885027539,1.26808579,110860.0,110850.0,0.01014882]
[1747885027748,6.83338925,110860.0,110850.0,0.01014882]
[1747885027923,0.21306038,110820.0,110810.0,0.01]
[1747885028141,1.41745395,110820.0,110810.0,0.01]
[1747885029345,1.24311444,110820.0,110810.0,0.01]
[1747885029560,1.75137098,110820.0,110810.0,0.01]
[1747885029735,1.43013395,110820.0,110810.0,0.01]
[1747885029983,0.69857395,110820.0,110810.0,0.01]
[1747885030190,1.41813395,110820.0,110810.0,0.01]
[1747885030365,1.41913395,110820.0,110810.0,0.01]
[1747885030574,1.42413395,110820.0,110810.0,0.01]
[1747885031010,1.52336752,110820.0,110810.0,0.01]
[1747885031220,1.42433395,110820.0,110810.0,0.01]
[1747885032021,0.70257395,110820.0,110810.0,0.01]
[1747885032186,1.1392331,110820.0,110810.0,0.0263]
[1747885032418,1.4097931,110820.0,110810.0,0.0427]
[1747885032653,1.4057931,110820.0,110810.0,0.0427]
[1747885032986,1.4067931,110820.0,110810.0,0.0427]
[1747885033474,1.4067931,110820.0,110810.0,0.01]
[1747885033475,1.42133395,110820.0,110810.0,0.01]
[1747885033690,1.72170245,110820.0,110810.0,0.01]
[1747885033859,1.43133395,110820.0,110810.0,0.01]
[1747885034679,0.70957395,110820.0,110810.0,0.01]
[1747885034880,1.42145395,110820.0,110810.0,0.01]
[1747885035854,1.51548752,110820.0,110810.0,0.01]
[1747885036202,1.42145395,110820.0,110810.0,0.01]
[1747885038047,1.42153395,110820.0,110810.0,0.01]
[1747885038652,1.72190245,110820.0,110810.0,0.01]
[1747885039686,1.45126245,110820.0,110810.0,0.01]
[1747885039900,0.70957395,110820.0,110810.0,0.01]
[1747885040126,1.43161395,110820.0,110810.0,0.01]
[1747885040705,0.02707702,110790.0,110780.0,0.26866898]
[1747885040924,0.03610302,110790.0,110780.0,0.26866898]
[1747885041190,0.21662472,110790.0,110780.0,0.25061609]
[1747885041445,0.20759929,110790.0,110780.0,0.25061609]
[1747885041712,0.20759929,110790.0,110780.0,0.25964274]
[1747885041966,0.20759929,110790.0,110780.0,0.26866931]
[1747885042264,0.20759929,110790.0,110780.0,0.25061609]
[1747885042265,0.19857362,110790.0,110780.0,0.25061609]
[1747885042767,0.19857362,110790.0,110780.0,0.24458936]
[1747885042973,0.19857362,110790.0,110780.0,0.048]
[1747885042974,0.1895477,110790.0,110780.0,0.048]
[1747885043238,0.1805217,110790.0,110780.0,0.048]
[1747885043551,0.00902665,110780.0,110770.0,0.21666289]
[1747885043774,0.00902657,110780.0,110770.0,0.21666289]
[1747885043979,0.01805306,110780.0,110770.0,0.21666289]
[1747885044180,0.21664469,110780.0,110770.0,0.19860853]
[1747885044529,0.00902722,110770.0,110760.0,0.21673785]
[1747885044697,0.03610961,110770.0,110760.0,0.20820634]
[1747885044932,0.0270819,110770.0,110760.0,0.21723429]
[1747885045135,0.03610945,110770.0,110760.0,0.21723429]
[1747885045798,0.21666375,110770.0,110760.0,0.00958012]
[1747885045971,0.19860923,110770.0,110760.0,0.00049595]
[1747885046420,0.36572552,110770.0,110760.0,0.00049595]
[1747885046857,0.36572552,110770.0,110760.0,0.00949595]
[1747885047076,0.38026637,110770.0,110760.0,0.00949595]
[1747885047278,0.38026637,110770.0,110760.0,0.00549595]
[1747885047487,0.39360559,110770.0,110760.0,0.00149595]
[1747885048487,0.38026637,110770.0,110760.0,0.00149595]
[1747885049550,0.38026637,110770.0,110760.0,0.00249595]
[1747885050117,0.30718365,110770.0,110760.0,0.00249595]
[1747885051489,0.30718365,110770.0,110740.0,0.73178302]
[1747885051490,0.18961616,110750.0,110740.0,0.73178302]
[1747885051669,0.19864526,110750.0,110740.0,0.21534276]
[1747885051873,0.19864526,110750.0,110740.0,0.00849834]
[1747885052224,0.51338444,110750.0,110740.0,0.00849834]
[1747885052435,0.31349058,110750.0,110740.0,0.00849834]
[1747885052655,0.4029733,110750.0,110740.0,0.00849834]
[1747885052862,0.4029733,110750.0,110740.0,0.0001489]
[1747885053554,0.95816716,110750.0,110740.0,0.0071489]
[1747885053780,0.95816716,110750.0,110740.0,0.0041489]
[1747885053988,0.61816716,110750.0,110740.0,0.0041489]
[1747885054208,0.4049733,110750.0,110740.0,0.0001489]
[1747885054432,0.30219058,110750.0,110740.0,0.0001489]
[1747885054645,0.18060321,110740.0,110730.0,0.24677194]
[1747885054870,0.20769269,110740.0,110730.0,0.0316]
[1747885055043,0.19866311,110740.0,110730.0,0.0316]
[1747885055264,0.18061952,110730.0,110720.0,0.01654896]
[1747885055474,0.18965041,110730.0,110720.0,0.02371194]
[1747885055815,0.18965041,110730.0,110720.0,0.2553058]
[1747885056026,0.18965041,110730.0,110720.0,0.5953058]
[1747885057126,0.18965041,110730.0,110720.0,0.38011194]
[1747885057352,0.18965041,110730.0,110720.0,0.5953058]
[1747885059998,0.18061952,110730.0,110720.0,0.78537325]
[1747885060214,0.19752198,110730.0,110720.0,0.60473759]
[1747885060431,0.19752198,110730.0,110720.0,0.61376921]
[1747885060645,0.20655263,110730.0,110720.0,0.6137693]
[1747885060868,0.20655263,110730.0,110720.0,0.80343675]
[1747885061082,0.19752198,110730.0,110720.0,0.80343675]
[1747885061337,0.20655271,110730.0,110720.0,0.80343675]
[1747885061996,0.1805869,110750.0,110730.0,0.0314]
[1747885062229,0.20767337,110750.0,110740.0,0.25562393]
[1747885062458,0.1805706,110760.0,110750.0,0.2119869]
[1747885062724,0.6399943,110770.0,110750.0,0.45426756]
[1747885062948,0.01805583,110760.0,110750.0,0.53864501]
[1747885063183,0.20765455,110760.0,110750.0,0.53864518]
[1747885063406,0.20765438,110760.0,110750.0,0.57907411]
[1747885063624,0.20765438,110760.0,110750.0,0.58810296]
[1747885063625,0.19862626,110760.0,110750.0,0.58810296]
[1747885063848,0.53252272,110770.0,110760.0,0.23002724]
[1747885064084,0.48652158,110770.0,110760.0,0.52041369]
[1747885064309,0.67610343,110770.0,110760.0,0.52041369]
[1747885064529,0.6580485,110770.0,110760.0,0.86944164]
[1747885064738,0.66707588,110770.0,110760.0,0.86944164]
[1747885064946,0.45944,110770.0,110760.0,0.87846968]
[1747885065252,0.0180542,110770.0,110760.0,0.87846968]
[1747885065467,0.46943081,110780.0,110770.0,0.37972771]
[1747885065670,0.47845754,110780.0,110770.0,0.37972771]
[1747885065882,0.47845754,110780.0,110770.0,0.39793064]
[1747885066611,0.20761754,110780.0,110770.0,0.39793064]
[1747885066836,0.21764427,110780.0,110770.0,0.86887139]
[1747885067040,0.21864427,110780.0,110770.0,0.86887139]
[1747885067243,0.21864427,110780.0,110770.0,0.3798753]
[1747885067443,0.20961795,110780.0,110770.0,0.38890301]
[1747885067648,0.19056481,110780.0,110770.0,0.3648753]
[1747885067862,0.46136481,110780.0,110770.0,0.3648753]
[1747885068085,0.452338,110780.0,110770.0,0.3658753]
[1747885068768,0.54637157,110780.0,110770.0,0.001]
[1747885069015,0.54537157,110780.0,110770.0,0.001]
[1747885069628,0.54537157,110780.0,110750.0,0.56904532]
[1747885069629,0.20765495,110760.0,110750.0,0.58710318]
[1747885069826,0.20765487,110760.0,110750.0,0.59613195]
[1747885070890,0.02708427,110760.0,110750.0,0.58710318]
[1747885071054,0.02708419,110760.0,110750.0,0.59613195]
[1747885072128,0.02708419,110760.0,110730.0,0.49285637]
[1747885072129,0.18059554,110750.0,110730.0,0.02994185]
[1747885072356,0.46946295,110740.0,110730.0,0.01449081]
[1747885072826,0.46946295,110740.0,110730.0,0.00014896]
[1747885073058,0.46946295,110740.0,110730.0,0.00852997]
[1747885073731,0.46946295,110740.0,110730.0,0.01152997]
[1747885073959,0.46946295,110740.0,110730.0,0.00714896]
[1747885075711,0.46946295,110740.0,110730.0,0.00414896]
[1747885075979,0.46946295,110740.0,110730.0,0.01353772]
[1747885076221,0.46946295,110740.0,110730.0,0.00853772]
[1747885076461,0.46946295,110740.0,110730.0,0.00953772]
[1747885076719,0.46946295,110740.0,110730.0,0.01053772]
[1747885076962,0.46946295,110740.0,110730.0,0.00953772]
[1747885077378,0.46946295,110740.0,110730.0,0.01053772]
[1747885078279,0.46946295,110740.0,110730.0,0.00214896]
[1747885079210,0.4604332,110740.0,110730.0,0.00214896]
[1747885080374,0.1896332,110740.0,110730.0,0.20083034]
[1747885080669,0.9199132,110740.0,110730.0,0.23263034]
[1747885081157,0.9199132,110740.0,110730.0,0.25069188]
[1747885081411,0.4684695,110740.0,110730.0,0.59972196]
[1747885081664,0.73934877,110750.0,110740.0,0.54768048]
[1747885081939,0.93799378,110750.0,110740.0,0.5704509]
[1747885082154,0.94702263,110750.0,110740.0,0.5704509]
[1747885082417,0.0090282,110760.0,110750.0,0.19864534]
[1747885082680,0.92894724,110760.0,110740.0,0.57977991]
[1747885082951,0.19864518,110750.0,110740.0,0.3564]
[1747885083266,0.19964518,110750.0,110740.0,0.37445998]
[1747885083445,0.19864518,110750.0,110740.0,0.55506319]
[1747885083841,0.19864518,110750.0,110740.0,0.77024312]
[1747885083962,0.19864518,110750.0,110740.0,0.77927295]
[1747885084462,0.19964518,110750.0,110740.0,0.77927295]
[1747885084891,0.19964518,110750.0,110740.0,0.56409302]
[1747885085062,0.19964518,110750.0,110740.0,0.77927295]
[1747885085260,0.19061608,110750.0,110740.0,0.36543007]
[1747885085510,0.19061608,110750.0,110740.0,0.34]
[1747885085682,0.19061608,110750.0,110740.0,0.56421009]
[1747885085857,0.19061608,110750.0,110740.0,0.55517993]
[1747885086594,0.01002893,110750.0,110740.0,0.73578314]
[1747885086796,0.28989762,110750.0,110740.0,0.79437262]
[1747885087010,0.28086869,110750.0,110740.0,0.79437262]
[1747885087211,0.28989754,110750.0,110740.0,0.79437262]
[1747885087585,0.28086869,110750.0,110740.0,0.79437262]
[1747885087784,0.28989746,110750.0,110740.0,0.79437262]
[1747885088018,0.29892639,110750.0,110740.0,0.79437262]
[1747885088202,0.001,110750.0,110740.0,0.79437262]
[1747885088401,0.27184,110750.0,110740.0,0.79437262]
[1747885088809,0.001,110750.0,110740.0,0.79437262]
[1747885088980,0.27084,110760.0,110750.0,0.23957394]
[1747885089182,0.27986787,110760.0,110750.0,0.45475387]
[1747885089385,0.27986787,110760.0,110750.0,0.23957394]
[1747885089601,0.27084,110760.0,110750.0,0.45475387]
[1747885090443,0.180538,110780.0,110770.0,0.18958185]
[1747885090735,0.83188711,110780.0,110770.0,0.41378925]
[1747885090943,0.8409136,110780.0,110770.0,0.44774385]
[1747885091297,0.8499405,110780.0,110770.0,0.44774385]
[1747885091502,0.74688012,110780.0,110770.0,0.44774385]
[1747885091701,0.00049482,110780.0,110770.0,0.80354385]
[1747885091945,0.28938763,110780.0,110770.0,0.81257099]
[1747885092146,0.02757436,110780.0,110770.0,0.81257099]
[1747885092382,0.01854763,110780.0,110770.0,0.81257099]
[1747885092781,0.29338763,110780.0,110770.0,0.81257099]
[1747885092984,0.00449482,110780.0,110770.0,0.81257099]
[1747885093142,0.27533482,110780.0,110770.0,0.81257099]
[1747885093349,0.00249482,110780.0,110770.0,0.81257099]
[1747885093553,0.00049482,110780.0,110770.0,0.81257099]
[1747885093916,0.00952106,110780.0,110770.0,0.81257099]
[1747885094137,0.01854747,110780.0,110770.0,0.81257099]
[1747885094375,0.02757396,110780.0,110770.0,0.81257099]
[1747885094593,0.02757396,110780.0,110770.0,0.81357099]
[1747885094948,0.20811286,110780.0,110770.0,0.5374543]
[1747885095161,0.19908637,110780.0,110770.0,0.341]
[1747885095366,0.29311994,110780.0,110770.0,0.341]
[1747885097964,0.30901994,110780.0,110770.0,0.001]
[1747885098169,0.39850266,110780.0,110770.0,0.001]
[1747885099150,0.41304351,110780.0,110770.0,0.001]
[1747885099376,0.41404351,110780.0,110770.0,0.001]
[1747885099799,0.41404351,110780.0,110760.0,0.34]
[1747885099800,0.20548185,110770.0,110760.0,0.34]
[1747885099931,0.57031542,110770.0,110760.0,0.34]
[1747885100856,0.6560526,110770.0,110760.0,0.34]
[1747885101296,0.27458787,110770.0,110760.0,0.73675053]
[1747885101510,0.09403357,110770.0,110760.0,0.79523512]
[1747885101723,0.20008604,110780.0,110770.0,0.19860948]
[1747885101956,0.47891285,110780.0,110770.0,0.41378941]
[1747885102182,0.45183282,110780.0,110760.0,0.79523455]
[1747885102363,0.01805477,110770.0,110760.0,0.79523455]
[1747885102589,0.01821877,110770.0,110760.0,0.79523455]
[1747885102993,0.01821877,110770.0,110760.0,0.79423455]
[1747885103204,0.20780054,110770.0,110760.0,0.57147993]
[1747885103426,0.74172689,110770.0,110760.0,0.34]
[1747885104062,0.83576046,110770.0,110760.0,0.34]
[1747885104362,0.74172689,110770.0,110760.0,0.341]
[1747885106110,0.84100022,110770.0,110760.0,0.53962741]
[1747885106322,0.45811122,110770.0,110760.0,0.78876365]
[1747885106541,0.7469655,110770.0,110760.0,0.80386365]
[1747885106781,0.75599297,110770.0,110760.0,0.58868372]
[1747885107041,0.75599297,110770.0,110760.0,0.80386365]
[1747885107250,0.72891098,110770.0,110760.0,0.80386365]
[1747885107450,0.75599281,110770.0,110760.0,0.80386365]
[1747885107624,0.719884,110770.0,110760.0,0.80386365]
[1747885107823,0.72891106,110770.0,110760.0,0.80386365]
[1747885108057,0.73793836,110770.0,110760.0,0.80386365]
[1747885108242,0.75599338,110770.0,110760.0,0.78876365]
[1747885109518,0.76502101,110770.0,110760.0,0.78876365]
[1747885109725,0.92752119,110770.0,110760.0,0.7548075]
[1747885109931,0.92752119,110770.0,110760.0,0.77286398]
[1747885110738,0.92752119,110770.0,110760.0,0.76383586]
[1747885110948,0.91849364,110770.0,110760.0,0.7548075]
[1747885111147,0.90946601,110770.0,110760.0,0.341]
[1747885111351,1.09753315,110770.0,110760.0,0.341]
[1747885111552,1.01889958,110770.0,110760.0,0.341]
[1747885111951,1.00349958,110770.0,110760.0,0.341]
[1747885112539,0.73793812,110770.0,110760.0,0.77973512]
[1747885112745,0.7469655,110770.0,110760.0,0.45483512]
[1747885112920,0.75599289,110770.0,110760.0,0.45483512]
[1747885113124,0.75599289,110770.0,110760.0,0.23965519]
[1747885113300,0.76502044,110770.0,110760.0,0.23965519]
[1747885113487,0.76502044,110770.0,110760.0,0.45483512]
[1747885114738,0.75599289,110770.0,110760.0,0.45483512]
[1747885115153,0.76502044,110770.0,110760.0,0.23965519]
[1747885115360,0.76502044,110770.0,110760.0,0.45483512]
[1747885115554,0.76502109,110770.0,110760.0,0.43973512]
[1747885115793,0.66217866,110770.0,110760.0,0.43973512]
[1747885115996,0.67120596,110770.0,110760.0,0.25402989]
[1747885116228,0.67120596,110770.0,110760.0,0.46920982]
[1747885116445,0.93854437,110770.0,110760.0,0.0142747]
[1747885116666,0.92048993,110770.0,110760.0,0.0142747]
[1747885116890,0.85176083,110770.0,110760.0,0.0142747]
[1747885117710,0.84273345,110770.0,110760.0,0.0142747]
[1747885119325,0.84273345,110770.0,110760.0,0.22945463]
[1747885119532,0.86078854,110770.0,110760.0,0.43405367]
[1747885119780,0.86078854,110770.0,110760.0,0.24445463]
[1747885120143,0.84273353,110770.0,110760.0,0.0142747]
[1747885120564,0.85695871,110770.0,110760.0,0.001]
[1747885122134,0.95099228,110770.0,110760.0,0.001]
[1747885122310,0.96599228,110770.0,110760.0,0.001]
[1747885123874,0.40804915,110770.0,110760.0,0.001]
[1747885124229,1.42253265,110770.0,110760.0,0.001]
[1747885124638,1.43253265,110770.0,110760.0,0.001]
[1747885125672,0.19866295,110740.0,110730.0,0.35434185]
[1747885125879,0.46946295,110740.0,110730.0,0.75386115]
[1747885126304,0.46946295,110740.0,110730.0,0.74483034]
[1747885126487,0.46946295,110740.0,110730.0,0.75386115]
[1747885126692,0.46946295,110740.0,110730.0,0.74483034]
[1747885126888,0.46946295,110740.0,110730.0,0.52979937]
[1747885127091,0.4604332,110740.0,110730.0,0.34414896]
[1747885127305,0.45140321,110740.0,110730.0,0.34414896]
[1747885127903,0.45140321,110740.0,110730.0,0.35317977]
[1747885128101,0.89232321,110740.0,110730.0,0.36254896]
[1747885128499,0.89232321,110740.0,110730.0,0.57772889]
[1747885129079,0.63958295,110740.0,110730.0,0.76737938]
[1747885129281,0.64861302,110740.0,110730.0,0.57772889]
[1747885129489,0.63958327,110740.0,110730.0,0.34714896]
[1747885130117,0.73361684,110740.0,110730.0,0.00714896]
[1747885130517,0.75001684,110740.0,110730.0,0.00714896]
[1747885131008,0.75001684,110740.0,110730.0,0.00414896]
[1747885131458,0.75001684,110740.0,110730.0,0.00614896]
[1747885132596,0.73361684,110740.0,110730.0,0.00214896]
[1747885132812,1.00445684,110740.0,110730.0,0.24972889]
[1747885133016,1.00445684,110740.0,110730.0,0.23382889]
[1747885133221,1.00445684,110740.0,110730.0,0.21732889]
[1747885133480,1.00445684,110740.0,110730.0,0.00014896]
[1747885133813,1.00545684,110740.0,110730.0,0.00014896]
[1747885134394,1.00645684,110740.0,110730.0,0.00014896]
[1747885137899,0.99742685,110740.0,110730.0,0.00014896]
[1747885138304,1.01372685,110740.0,110730.0,0.00014896]
[1747885138534,1.02922685,110740.0,110730.0,0.00014896]
[1747885140312,1.01372685,110740.0,110730.0,0.00014896]
[1747885140523,0.99742685,110740.0,110730.0,0.00014896]
[1747885140715,0.99742685,110740.0,110730.0,0.21532889]